bitfinex/quotes_ETHUSD_20250622
["timestamp","ask_amount","ask_price","bid_price","bid_amount"]
[1750626780184,0.0614,2192.3,2191.8,10.44856302]
[1750626780478,0.7093,2192.4,2191.8,15.01100362]
[1750626780694,0.7093,2192.4,2191.8,0.44856302]
[1750626780695,0.55,2192.3,2191.8,0.44856302]
[1750626780843,0.0614,2192.3,2191.9,0.04562125]
[1750626781042,0.0614,2192.3,2191.8,4.60799378]
[1750626781281,8.4987,2192.4,2191.9,4.56210424]
[1750626781575,8.4987,2192.4,2191.8,1.36384915]
[1750626781738,0.7093,2192.4,2191.9,0.0417]
[1750626781939,0.7093,2192.4,2192.2,4.56148475]
[1750626782183,0.7093,2192.4,2192.2,5.52399773]
[1750626782386,0.7093,2192.7,2192.3,4.56138918]
[1750626782739,0.7093,2192.7,2192.2,5.52408237]
[1750626783135,0.7093,2192.7,2192.2,0.96251254]
[1750626784083,0.9337324,2193.1,2192.4,11.1811]
[1750626784297,0.0614,2193.0,2192.5,1.11811]
[1750626784753,0.55,2192.8,2191.8,1.62788295]
[1750626784950,0.55,2192.8,2191.2,4.56370938]
[1750626784951,0.7093,2192.2,2191.2,4.56370938]
[1750626785271,0.7093,2192.2,2191.6,4.56286061]
[1750626785475,0.7093,2192.2,2191.7,10.0]
[1750626785637,2.898,2192.5,2191.8,1.45628011]
[1750626785638,0.7093,2192.4,2191.8,1.45628011]
[1750626785839,0.7093,2192.4,2191.8,10.0]
[1750626786039,0.7093,2192.4,2191.9,4.60783537]
[1750626786452,0.7093,2192.4,2192.1,4.56171591]
[1750626786652,0.7093,2192.4,2191.9,0.0417]
[1750626786977,0.7093,2192.7,2192.3,4.5612807]
[1750626787577,0.7093,2192.7,2192.4,4.561133]
[1750626788373,0.7093,2192.7,2192.5,4.56099582]
[1750626788875,7.726,2192.8,2192.5,4.56087302]
[1750626789872,7.726,2192.8,2192.4,10.0]
[1750626789873,7.726,2192.8,2192.3,2.11166433]
[1750626790174,7.726,2192.8,2192.3,15.47776802]
[1750626790474,7.726,2192.8,2192.4,0.79518776]
[1750626791390,11.1874324,2193.1,2192.4,4.56108669]
[1750626791944,11.1874324,2193.1,2192.3,4.56138913]
[1750626792178,11.1874324,2193.1,2192.7,4.56046041]
[1750626792366,11.1874324,2193.1,2192.8,0.04559741]
[1750626792367,0.2244324,2193.1,2192.8,0.04559741]
[1750626792678,0.2244324,2193.1,2192.8,5.07256867]
[1750626792971,0.2244324,2193.1,2192.9,5.11326317]
[1750626793172,0.2244324,2193.1,2192.9,5.11715823]
[1750626793344,0.2244324,2193.1,2192.9,0.55702193]
[1750626793739,0.2866324,2193.1,2192.8,0.46660972]
[1750626793976,0.2244324,2193.1,2192.5,12.347]
[1750626794154,0.2244324,2193.1,2192.7,4.56055769]
[1750626794662,0.2244324,2193.1,2192.9,4.56009444]
[1750626794862,0.2244324,2193.1,2193.0,4.55996352]
[1750626795067,0.2244324,2193.1,2193.0,1.02552818]
[1750626795245,0.2244324,2193.1,2192.8,5.73692461]
[1750626796274,0.2244324,2193.1,2192.9,4.56014664]
[1750626797294,0.2244324,2193.1,2192.8,5.73696815]
[1750626797794,0.2244324,2193.1,2192.9,4.56017124]
[1750626797959,0.2244324,2193.1,2193.0,4.55996352]
[1750626798160,0.2244324,2193.1,2193.0,0.57366635]
[1750626798412,0.2244324,2193.1,2192.8,0.04559369]
[1750626798610,0.2244324,2193.1,2193.0,10.0]
[1750626799111,0.2244324,2193.1,2193.0,14.55996352]
[1750626799433,0.2244324,2193.1,2193.0,10.0]
[1750626799709,0.2244324,2193.1,2193.0,14.55996352]
[1750626800506,0.2244324,2193.1,2193.0,16.58324305]
[1750626800971,0.2244324,2193.1,2193.0,12.02327953]
[1750626802798,0.2244324,2193.1,2193.0,2.02327953]
[1750626803122,0.2244324,2193.1,2192.8,4.56037942]
[1750626803411,0.2244324,2193.1,2192.9,0.04559292]
[1750626803588,0.2244324,2193.1,2193.0,0.0417]
[1750626803765,0.2244324,2193.1,2193.0,4.60166352]
[1750626803966,0.2244324,2193.1,2193.0,5.59325048]
[1750626805807,0.2244324,2193.1,2193.0,5.63883996]
[1750626808540,0.2244324,2193.1,2193.0,5.59325048]
[1750626810537,0.2244324,2193.1,2193.0,20.51336373]
[1750626810749,0.2244324,2193.1,2193.0,20.46777535]
[1750626810950,0.2244324,2193.1,2193.0,28.18477535]
[1750626811150,0.2244324,2193.1,2193.0,1.03328696]
[1750626811555,0.2244324,2193.1,2193.0,5.59325048]
[1750626811854,0.2244324,2193.1,2193.0,11.03328696]
[1750626812734,0.2866324,2193.1,2193.0,11.03328696]
[1750626812933,0.7722,2193.0,2192.7,0.46758582]
[1750626813133,0.0622,2192.9,2192.1,1.1282]
[1750626813353,0.7722,2193.0,2192.6,4.56066892]
[1750626813548,0.7722,2193.0,2192.7,0.04559956]
[1750626813740,0.7722,2193.0,2192.6,4.56066892]
[1750626813925,0.7722,2193.0,2192.7,0.50166646]
[1750626814129,0.71,2193.0,2192.7,5.06217683]
[1750626814322,0.2244324,2193.1,2192.7,0.45606689]
[1750626814540,0.2866324,2193.1,2192.7,5.01664243]
[1750626815164,0.2244324,2193.1,2192.7,5.01664243]
[1750626815461,0.2244324,2193.1,2192.8,2.0705632]
[1750626815763,0.2244324,2193.1,2192.9,0.04559596]
[1750626815930,0.2244324,2193.1,2192.9,0.50183881]
[1750626816440,0.2244324,2193.1,2192.9,5.06199555]
[1750626816657,0.2244324,2193.1,2192.9,0.45624285]
[1750626816844,0.2244324,2193.1,2192.9,0.75433139]
[1750626817055,0.2244324,2193.1,2192.9,0.79992533]
[1750626817364,0.2244324,2193.1,2193.0,14.55996352]
[1750626817533,0.2244324,2193.1,2193.0,14.60166352]
[1750626818052,0.2244324,2193.1,2193.0,15.73366352]
[1750626818257,0.2244324,2193.1,2193.0,19.18125607]
[1750626819067,0.2244324,2193.1,2193.0,19.22295607]
[1750626819436,0.2244324,2193.1,2193.0,29.27695607]
[1750626819670,0.2244324,2193.1,2193.0,29.82695607]
[1750626820773,0.7722,2194.2,2193.7,11.221]
[1750626820774,0.9966,2194.2,2193.7,11.221]
[1750626821069,0.0622,2194.1,2193.8,10.24063009]
[1750626821573,0.0622,2194.1,2193.8,2.52663009]
[1750626822180,0.9344,2194.2,2193.8,2.52663009]
[1750626822469,0.9344,2194.2,2193.8,10.04557655]
[1750626822470,0.0622,2194.1,2193.8,10.04557655]
[1750626822765,1.34656154,2194.3,2194.0,4.55773659]
[1750626822964,1.34656154,2194.3,2193.9,10.0]
[1750626823145,1.34656154,2194.3,2193.9,4.55808957]
[1750626823466,1.34656154,2194.3,2194.0,5.13577483]
[1750626824166,1.34656154,2194.3,2194.1,0.04556999]
[1750626824546,1.34656154,2194.3,2194.0,1.02996061]
[1750626825068,1.34656154,2194.3,2194.1,0.04556984]
[1750626825372,1.34656154,2194.3,2193.3,10.0]
[1750626825373,0.0619,2194.1,2193.3,10.0]
[1750626825664,0.0619,2194.1,2193.5,14.55886455]
[1750626826381,0.9344,2194.0,2193.6,0.04557521]
[1750626826549,0.0619,2193.9,2193.6,0.04557521]
[1750626827056,0.9344,2194.0,2193.4,2.1272]
[1750626827261,0.9344,2193.8,2192.9,0.45277333]
[1750626827472,0.0619,2193.7,2192.8,4.56033444]
[1750626827669,0.0619,2193.7,2193.1,4.55973685]
[1750626827969,0.9344,2193.8,2193.2,10.0]
[1750626828350,0.0619,2193.5,2193.2,0.46550575]
[1750626828552,0.9344,2193.6,2192.9,2.06141593]
[1750626828748,0.0619,2193.5,2192.9,2.06141593]
[1750626828952,0.0619,2193.5,2193.0,1.66217045]
[1750626829147,0.0619,2193.5,2192.9,2.06141593]
[1750626829384,0.9344,2193.2,2192.1,22.95461705]
[1750626829588,0.0619,2192.9,2192.1,3.56]
[1750626829879,0.0619,2192.9,2192.2,10.0]
[1750626830285,0.9377,2192.7,2191.7,1.2059]
[1750626830451,0.0619,2192.5,2192.0,4.56190635]
[1750626830646,0.0619,2192.5,2192.1,0.50179958]
[1750626831387,0.0619,2192.5,2192.1,0.45619064]
[1750626831685,0.9377,2193.0,2192.1,1.2059]
[1750626831888,0.0619,2192.9,2192.1,1.2059]
[1750626832050,0.9377,2192.8,2192.0,16.8900083]
[1750626832254,0.0619,2192.7,2192.0,17.3428173]
[1750626832457,0.0619,2192.7,2192.0,15.0148173]
[1750626832694,0.0619,2192.7,2192.1,1.73428173]
[1750626832983,0.9377,2192.8,2192.1,1.73428173]
[1750626832984,0.9377,2192.8,2192.2,10.0]
[1750626833956,0.0619,2192.7,2192.2,10.0]
[1750626834356,0.0619,2192.7,2192.2,4.56161232]
[1750626834587,0.9377,2192.6,2192.1,1.73428173]
[1750626834789,0.0619,2192.5,2192.0,0.452809]
[1750626834987,0.0619,2192.5,2192.1,4.56171525]
[1750626835191,0.9377,2192.6,2191.8,16.03872487]
[1750626835370,0.9377,2192.6,2192.3,4.56126903]
[1750626835569,0.9377,2192.6,2192.4,0.04560877]
[1750626835776,0.9377,2192.9,2192.4,4.56104287]
[1750626835980,0.0619,2192.8,2192.4,0.44527816]
[1750626836176,0.9377,2192.9,2192.3,10.0]
[1750626836587,0.0619,2192.8,2192.3,10.0]
[1750626836887,0.9377,2192.9,2192.5,4.56087827]
[1750626837063,0.9996,2192.9,2192.4,4.56113301]
[1750626837260,0.9996,2192.9,2192.3,16.01748229]
[1750626837571,0.9377,2192.9,2192.5,4.5609043]
[1750626837784,0.9377,2192.9,2192.3,6.0174795]
[1750626837986,0.9377,2192.9,2192.4,2.06207491]
[1750626838171,0.9377,2192.9,2192.4,6.62321289]
[1750626838484,0.9377,2192.9,2192.5,4.56097444]
[1750626839961,0.9377,2192.9,2192.4,6.62320891]
[1750626840296,0.9377,2193.3,2192.7,10.0]
[1750626840595,0.0619,2193.2,2192.8,0.04559769]
[1750626841298,0.9377,2193.3,2192.7,12.57300827]
[1750626841496,0.9996,2193.3,2192.8,0.04559772]
[1750626841697,0.9377,2193.3,2192.8,1.30745832]
[1750626841863,0.9996,2193.3,2192.9,4.56004862]
[1750626842060,1.32426525,2193.5,2192.8,1.3035606]
[1750626842283,1.32426525,2193.5,2192.8,11.3035606]
[1750626842284,1.38616525,2193.5,2192.8,11.3035606]
[1750626842802,1.38616525,2193.5,2193.0,4.55979955]
[1750626843100,1.38616525,2193.5,2193.0,6.14613557]
[1750626843673,0.0619,2193.4,2193.0,1.58633602]
[1750626843914,1.32426525,2193.5,2193.0,10.0]
[1750626844263,1.32426525,2193.5,2192.8,1.2618606]
[1750626844464,1.38616525,2193.5,2193.0,10.0]
[1750626844660,1.38616525,2193.5,2193.1,4.55975208]
[1750626844906,0.0619,2193.4,2193.0,4.55990318]
[1750626845198,0.0619,2193.4,2193.0,11.03820845]
[1750626845387,1.32426525,2193.5,2193.0,1.03820845]
[1750626845588,0.0619,2193.4,2192.9,4.56004551]
[1750626845792,0.9377,2193.1,2192.4,2.06207491]
[1750626845962,0.0619,2193.0,2192.3,5.01500019]
[1750626846166,0.9996,2193.1,2192.5,4.56087947]
[1750626846400,0.9996,2193.1,2192.6,4.56076907]
[1750626846702,0.9996,2193.1,2192.3,14.56141391]
[1750626847069,0.9996,2193.1,2192.3,10.0]
[1750626847270,0.9996,2193.1,2192.6,4.56072141]
[1750626847498,0.9996,2193.1,2192.7,10.04560024]
[1750626847698,0.9377,2193.1,2192.6,10.0]
[1750626847897,0.0619,2193.0,2192.6,10.0]
[1750626848116,0.55,2192.7,2191.8,1.1253]
[1750626848401,0.9377,2192.6,2192.1,4.56163417]
[1750626848586,0.9377,2192.6,2192.2,5.47387412]
[1750626848802,0.9377,2192.6,2192.2,0.9123678]
[1750626849009,0.0619,2192.5,2192.1,10.0]
[1750626849890,0.0619,2192.5,2192.0,4.56197776]
[1750626850202,0.0619,2192.5,2192.1,10.0]
[1750626850607,0.0619,2192.5,2192.2,0.04561132]
[1750626850815,0.0619,2192.5,2192.0,14.56196688]
[1750626851024,0.0619,2192.5,2192.1,1.45619669]
[1750626851414,0.0619,2192.5,2192.1,6.01800441]
[1750626851592,0.0619,2192.5,2192.2,0.04561133]
[1750626851788,0.0619,2192.5,2192.1,1.45619669]
[1750626852127,0.9377,2192.6,2192.1,1.45619669]
[1750626852294,0.9377,2192.6,2191.9,4.56215859]
[1750626852295,0.0619,2192.5,2192.0,10.0]
[1750626852489,0.0619,2192.5,2192.0,4.56203991]
[1750626853090,0.9377,2192.6,2192.0,4.56203991]
[1750626853290,0.9377,2192.6,2192.1,0.04561364]
[1750626853485,0.0619,2192.5,2192.1,0.04561364]
[1750626853706,0.0619,2192.5,2192.1,10.506379]
[1750626853907,0.0619,2192.5,2192.1,10.46076536]
[1750626854310,0.9377,2192.6,2192.1,0.46076536]
[1750626854624,0.0597,2192.5,2192.0,4.56200227]
[1750626854796,0.9377,2192.6,2192.1,0.04561366]
[1750626854992,0.9377,2192.6,2192.0,4.56204048]
[1750626855192,0.0597,2192.4,2192.0,4.56204048]
[1750626855522,0.9377,2192.6,2192.1,10.04561366]
[1750626855729,0.0597,2192.5,2192.1,6.15321128]
[1750626855924,0.9377,2192.6,2192.2,4.56151316]
[1750626856130,0.9974,2192.6,2192.1,1.59138882]
[1750626856333,0.9974,2192.6,2191.8,15.02451789]
[1750626856626,0.0597,2192.4,2191.8,0.462224]
[1750626856930,0.9974,2192.3,2191.8,4.56232739]
[1750626857319,0.0597,2192.2,2191.8,4.56232739]
[1750626857624,0.9377,2192.3,2192.0,10.0]
[1750626857625,0.9974,2192.3,2192.0,10.0]
[1750626858029,0.9974,2192.3,2191.8,4.56237557]
[1750626858327,0.0597,2192.2,2191.8,6.82456365]
[1750626859215,0.0597,2192.2,2191.8,2.71013783]
[1750626859414,0.0597,2192.2,2191.8,0.44801884]
[1750626859598,0.0597,2192.2,2191.8,4.56243275]
[1750626859797,0.9377,2192.3,2191.9,4.56213461]
[1750626859994,0.9974,2192.3,2191.9,4.56213461]
[1750626860194,0.0597,2192.2,2191.8,10.0]
[1750626860405,0.9377,2192.3,2191.6,4.56278896]
[1750626860406,2.879,2192.5,2191.7,10.0]
[1750626860632,1.0014,2192.4,2191.7,10.0]
[1750626860797,0.0597,2192.3,2191.7,11.95840794]
[1750626860990,0.9417,2192.2,2191.7,11.95840794]
[1750626861190,0.0597,2192.1,2191.7,11.95840794]
[1750626861835,0.0597,2192.1,2191.5,0.45823702]
[1750626862011,0.9417,2192.0,2191.3,4.56335688]
[1750626862210,0.0597,2191.9,2191.4,10.0]
[1750626862837,0.0597,2191.9,2191.5,4.5630486]
[1750626863209,0.0597,2191.9,2191.2,16.93437372]
[1750626863422,0.0597,2191.9,2191.4,4.56317772]
[1750626863819,0.9417,2192.0,2191.4,4.56317772]
[1750626864021,0.0597,2191.9,2191.4,4.56317772]
[1750626864227,0.0597,2191.9,2191.3,8.12305501]
[1750626864424,0.9417,2191.8,2191.3,3.55963737]
[1750626864734,1.0014,2191.8,2191.3,10.0]
[1750626865232,0.9417,2191.8,2191.3,10.0]
[1750626865811,0.0597,2191.6,2191.2,0.46645897]
[1750626866007,0.0597,2191.6,2191.1,10.0]
[1750626866208,0.9417,2191.4,2190.7,1.371795]
[1750626866421,0.9417,2191.2,2190.7,2.08322989]
[1750626866613,0.0597,2191.1,2190.7,12.08322989]
[1750626866816,0.9417,2191.2,2190.7,12.08322989]
[1750626866817,1.0014,2191.2,2190.8,4.56453102]
[1750626867141,1.0014,2191.2,2190.9,4.56429846]
[1750626867344,1.0014,2191.2,2190.8,4.61009229]
[1750626867541,1.0014,2191.2,2190.9,4.56433336]
[1750626867705,1.0014,2191.2,2190.8,8.03637792]
[1750626868034,1.0014,2191.2,2190.8,8.50088125]
[1750626868905,1.0014,2191.2,2190.8,3.93641299]
[1750626869243,1.0014,2191.2,2190.8,3.98205329]
[1750626869559,0.0597,2191.1,2190.8,3.47190966]
[1750626869707,0.0597,2191.1,2190.7,10.71143489]
[1750626869908,0.9417,2191.2,2190.7,0.71143489]
[1750626870239,0.9417,2191.2,2190.4,4.56534782]
[1750626870240,0.0597,2191.1,2190.4,4.56534782]
[1750626870542,0.0597,2191.1,2190.5,4.56505482]
[1750626871170,0.9417,2191.0,2190.4,10.44760228]
[1750626871355,0.0597,2190.9,2190.4,10.44760228]
[1750626871978,0.9417,2191.0,2190.4,15.01296364]
[1750626872128,0.9417,2191.3,2190.7,10.0]
[1750626872332,1.0014,2191.3,2190.7,10.0]
[1750626872752,1.0014,2191.3,2190.7,4.56473971]
[1750626873167,1.0014,2191.3,2190.7,10.0]
[1750626873465,1.0014,2191.3,2190.6,4.5649032]
[1750626873466,1.0014,2191.3,2190.8,4.56450472]
[1750626873673,0.9417,2191.6,2191.2,14.87452487]
[1750626873831,0.9417,2191.6,2191.4,4.5631528]
[1750626874034,0.9417,2191.9,2191.5,4.56295808]
[1750626874256,0.9417,2191.9,2191.5,4.56308464]
[1750626874584,3.2617,2192.3,2191.7,4.56266824]
[1750626874746,0.9417,2192.3,2191.9,4.56210157]
[1750626875451,0.9417,2192.3,2191.8,4.56237833]
[1750626876192,0.9417,2192.3,2191.9,4.56223969]
[1750626876394,0.9417,2192.3,2191.8,0.0417]
[1750626876591,0.9417,2192.3,2191.8,2.00445863]
[1750626877287,0.9417,2192.3,2191.8,6.56689574]
[1750626877455,0.9417,2192.3,2191.8,2.00445863]
[1750626878062,0.9417,2192.3,2191.8,6.56683098]
[1750626878264,0.9417,2192.3,2191.8,2.00445863]
[1750626878476,0.9417,2192.3,2191.8,1.96275863]
[1750626878682,0.9417,2192.3,2191.9,0.65252958]
[1750626879457,0.9417,2192.3,2191.9,1.11009847]
[1750626880674,0.0597,2192.2,2191.9,0.45756889]
[1750626880876,0.0597,2192.2,2191.6,0.46047846]
[1750626881695,2.32,2192.6,2191.3,1.371426]
[1750626881696,0.9417,2191.9,2191.3,1.371426]
[1750626882004,0.0597,2192.0,2190.9,4.56420833]
[1750626882005,0.0597,2191.6,2190.9,4.56420833]
[1750626882227,0.0597,2191.6,2190.8,4.56454263]
[1750626882403,0.0597,2191.6,2190.7,14.3349782]
[1750626882772,0.9417,2191.7,2190.8,10.0417]
[1750626883102,0.9417,2191.7,2191.1,10.0]
[1750626883303,0.9417,2191.7,2191.2,0.04563092]
[1750626883505,0.9417,2191.7,2191.2,4.60920671]
[1750626883896,0.9417,2191.7,2191.2,0.04563092]
[1750626884603,0.9417,2191.7,2191.3,4.60508237]
[1750626884915,0.9417,2191.7,2191.3,5.52196503]
[1750626885203,0.9417,2191.7,2191.3,0.95858266]
[1750626885407,0.9417,2191.7,2191.2,4.60531863]
[1750626886022,0.9417,2191.7,2191.2,4.56361863]
[1750626886522,0.9417,2191.7,2191.1,14.56383015]
[1750626886826,0.9417,2191.7,2191.2,4.56370017]
[1750626887020,0.9417,2191.7,2191.3,4.56344263]
[1750626887731,0.9417,2191.7,2191.2,4.56363468]
[1750626888022,1.002,2191.7,2191.2,1.91691851]
[1750626888225,1.002,2191.7,2191.1,14.5638397]
[1750626889421,1.002,2191.7,2191.2,4.56369969]
[1750626889636,1.002,2191.7,2191.3,4.56340548]
[1750626889824,0.9417,2191.7,2191.3,0.04562883]
[1750626890130,1.002,2191.7,2191.3,0.04562883]
[1750626890688,1.002,2191.7,2191.2,4.56362208]
[1750626891528,1.002,2191.7,2191.1,14.56382121]
[1750626891716,1.002,2191.7,2191.2,4.563702]
[1750626891894,0.9417,2191.7,2191.2,0.0417]
[1750626892098,0.9417,2191.7,2191.3,4.5633852]
[1750626892414,0.9417,2191.7,2191.3,4.6050852]
[1750626892818,0.9417,2191.7,2191.3,4.5633852]
[1750626893014,0.9417,2191.7,2191.3,6.64855891]
[1750626893329,0.9417,2191.7,2191.4,0.04562637]
[1750626894100,0.9417,2191.7,2191.3,6.6486045]
[1750626894508,0.9417,2191.7,2191.3,2.08517371]
[1750626894803,1.002,2191.7,2191.3,2.08517371]
[1750626895001,0.005,2464.0,2191.6,15.92832487]
[1750626895002,4.816,2193.0,2191.6,15.92832487]
[1750626895198,1.1123,2193.3,2192.6,0.55]
[1750626895534,1.1123,2193.3,2192.0,0.0417]
[1750626895535,0.0603,2193.0,2192.0,0.0417]
[1750626895831,1.1118,2192.9,2192.1,4.56179122]
[1750626896033,1.1118,2192.9,2192.3,0.0417]
[1750626896200,1.1118,2192.9,2192.4,4.60276631]
[1750626897100,1.1118,2192.9,2192.2,3.4035]
[1750626897298,1.1118,2192.9,2192.3,4.56139645]
[1750626898605,1.1118,2192.9,2192.3,10.0]
[1750626898804,1.1118,2192.9,2192.3,14.56141239]
[1750626899505,0.0603,2192.8,2192.0,0.46782343]
[1750626899702,1.1118,2192.7,2192.0,4.56204379]
[1750626899906,1.1118,2192.7,2192.1,0.04561268]
[1750626900341,0.0603,2192.6,2192.0,4.56201462]
[1750626900641,0.0603,2192.6,2192.0,5.01329976]
[1750626901023,1.32426525,2193.5,2193.4,4.55913194]
[1750626901298,1.1118,2194.8,2194.2,10.0]
[1750626901503,1.1721,2194.8,2194.4,10.0]
[1750626901664,1.1721,2194.8,2194.5,0.04556379]
[1750626901868,1.1118,2194.8,2194.5,0.04556379]
[1750626902099,1.1118,2195.1,2194.8,4.55618097]
[1750626902313,1.1721,2195.1,2194.7,0.04556]
[1750626902597,0.0603,2195.0,2194.5,4.60239317]
[1750626902756,1.1118,2195.1,2194.7,4.5564314]
[1750626902958,0.2244324,2195.3,2195.0,4.55565845]
[1750626903305,0.2244324,2195.3,2195.2,4.55539358]
[1750626903661,0.2244324,2195.3,2195.2,25.66297071]
[1750626904698,0.2244324,2195.3,2195.2,26.75637071]
[1750626904908,0.2244324,2195.3,2195.2,31.51786034]
[1750626905273,1.0836,2196.4,2195.9,4.55393007]
[1750626905783,1.46349048,2196.5,2196.2,10.0]
[1750626905988,1.46349048,2196.5,2196.2,4.55330529]
[1750626906197,1.46349048,2196.5,2196.3,0.04552362]
[1750626906780,1.46349048,2196.5,2196.4,4.55290475]
[1750626907017,1.46349048,2196.5,2196.2,14.55314804]
[1750626907474,1.46349048,2196.5,2196.4,10.0]
[1750626907669,1.46349048,2196.5,2196.2,10.0]
[1750626908637,1.46349048,2196.5,2196.0,11.368491]
[1750626908778,1.46349048,2196.5,2196.1,5.06226725]
[1750626908973,1.46349048,2196.5,2196.0,13.674491]
[1750626909177,1.46349048,2196.5,2196.1,0.04552436]
[1750626909821,1.46349048,2196.5,2196.0,1.368491]
[1750626909822,1.1479,2196.2,2196.0,1.368491]
[1750626909976,1.1479,2195.4,2194.5,4.55666256]
[1750626910176,0.0603,2195.3,2194.5,4.55663969]
[1750626910380,0.0603,2195.3,2194.6,10.0]
[1750626910593,0.0603,2195.3,2194.5,4.55663969]
[1750626911171,0.0603,2195.3,2194.6,4.55649248]
[1750626911704,0.0603,2195.3,2194.5,6.22988064]
[1750626911901,0.0603,2195.3,2194.6,14.55663398]
[1750626912706,0.0603,2195.3,2194.8,10.0]
[1750626913535,0.0603,2195.3,2194.7,4.55640836]
[1750626913536,1.1479,2195.4,2194.9,0.08725307]
[1750626913839,1.1479,2195.4,2194.9,10.08725307]
[1750626914041,1.1479,2195.4,2195.2,10.0]
[1750626914204,1.1105,2195.7,2195.2,10.0]
[1750626914407,1.1105,2195.7,2195.3,4.55518115]
[1750626914626,1.1105,2195.7,2195.2,15.00578683]
[1750626915092,1.1105,2195.7,2195.4,10.0]
[1750626915535,1.1105,2195.7,2195.5,0.04554241]
[1750626915964,1.1105,2195.7,2195.2,5.00577529]
[1750626916625,1.3330866,2196.1,2196.0,14.55373406]
[1750626916827,1.1034,2197.3,2196.3,4.55296725]
[1750626916828,0.0574,2197.0,2196.3,4.55296725]
[1750626916998,0.0574,2197.0,2196.1,14.55352648]
[1750626917344,1.1287,2196.9,2196.3,10.0]
[1750626918196,1.19806855,2196.9,2196.3,10.0]
[1750626918393,1.19806855,2196.9,2196.3,4.55309279]
[1750626919332,1.19806855,2196.9,2195.6,2.518098]
[1750626919333,0.55,2196.6,2195.6,2.518098]
[1750626919497,0.55,2196.6,2195.8,4.5539986]
[1750626919498,0.0574,2196.5,2195.8,4.5539986]
[1750626919719,0.0574,2196.1,2195.2,0.45045824]
[1750626919923,0.0574,2196.1,2195.5,4.55474421]
[1750626919924,1.1287,2196.0,2195.5,4.55474421]
[1750626920242,1.1861,2196.0,2195.5,0.46328156]
[1750626920540,1.1861,2196.0,2195.3,10.0]
[1750626920541,0.0574,2195.9,2195.3,10.0]
[1750626920964,0.55,2195.8,2195.0,4.55563628]
[1750626921159,1.1287,2195.4,2194.6,4.5566188]
[1750626921385,0.0574,2195.3,2194.7,0.04555747]
[1750626921674,0.0574,2195.3,2194.8,4.55607118]
[1750626921852,1.1287,2195.4,2194.9,14.60156084]
[1750626922053,1.1287,2195.4,2195.0,0.04555407]
[1750626922363,1.1287,2195.4,2194.9,4.55594518]
[1750626922658,1.1287,2195.4,2195.1,4.55546404]
[1750626922844,1.1287,2195.4,2195.2,0.04554876]
[1750626923042,1.0779,2195.7,2195.2,0.5012191]
[1750626923244,1.0779,2195.7,2195.2,4.55531034]
[1750626923742,1.0779,2195.7,2195.3,4.55516095]
[1750626923949,1.0779,2195.7,2195.3,0.0455458]
[1750626924124,1.0779,2195.7,2195.2,4.55537623]
[1750626924948,1.0779,2195.7,2195.2,4.55539358]
[1750626925426,1.0779,2195.7,2195.3,0.04554582]
[1750626925993,3.3869,2196.0,2195.6,10.0]
[1750626926255,1.0779,2196.0,2195.6,10.0]
[1750626926558,1.0779,2196.0,2195.7,0.04553981]
[1750626926737,1.0779,2196.0,2195.5,14.55471168]
[1750626927054,1.0779,2196.0,2195.5,15.84310714]
[1750626927668,0.0574,2195.9,2195.1,10.0417]
[1750626927860,1.0779,2196.0,2195.1,10.0417]
[1750626927861,1.0779,2196.0,2195.3,0.0417]
[1750626928055,1.0779,2196.0,2195.5,14.5545946]
[1750626928269,1.0779,2196.0,2195.6,10.0]
[1750626928469,1.1353,2196.0,2195.5,10.0]
[1750626928772,1.1353,2196.0,2195.5,14.55474157]
[1750626929145,1.0779,2196.0,2195.6,0.04553985]
[1750626929349,1.0779,2196.0,2195.7,10.0]
[1750626930168,1.0779,2196.0,2195.9,10.0]
[1750626930336,1.0779,2196.0,2195.7,4.55426421]
[1750626930539,1.0779,2196.0,2195.7,10.0]
[1750626930749,1.0779,2196.0,2195.6,2.00455399]
[1750626930952,1.1353,2196.0,2195.5,14.55471309]
[1750626931250,1.1353,2196.0,2195.5,14.55465356]
[1750626931769,1.1353,2196.0,2195.5,14.55475092]
[1750626932133,1.0779,2196.0,2195.7,10.0]
[1750626932644,1.0779,2196.0,2195.5,14.55472814]
[1750626932975,1.0779,2196.0,2195.5,4.5547549]
[1750626933177,1.0779,2196.0,2195.7,10.0]
[1750626933336,1.0779,2196.0,2195.5,2.68335875]
[1750626933662,1.1353,2196.0,2195.3,14.55510141]
[1750626933859,1.1353,2196.0,2195.2,5.00593499]
[1750626934075,11.10757713,2196.8,2195.8,11.10757713]
[1750626934076,1.1806,2196.8,2195.8,11.10757713]
[1750626934281,1.1806,2196.8,2196.1,10.0]
[1750626934282,0.0574,2196.7,2196.1,10.0]
[1750626934441,0.0574,2196.7,2196.0,4.55360759]
[1750626934642,1.1806,2196.8,2196.2,4.55318696]
[1750626934845,1.238,2196.8,2196.0,0.95245205]
[1750626935101,1.238,2196.8,2196.3,4.55299164]
[1750626935452,1.238,2196.8,2196.3,4.99906485]
[1750626935768,1.1806,2196.8,2196.4,4.55276225]
[1750626935969,1.1806,2196.8,2196.5,4.55253575]
[1750626936271,1.1806,2196.8,2196.4,0.95936348]
[1750626936864,1.1806,2196.8,2196.3,10.0]
[1750626937070,0.0574,2196.7,2196.3,10.44821424]
[1750626937289,1.1806,2196.8,2196.3,0.44821424]
[1750626937590,1.238,2196.8,2196.3,10.0]
[1750626937797,1.1806,2196.8,2196.3,10.0]
[1750626937982,1.238,2196.8,2196.3,11.45532973]
[1750626938146,1.1806,2196.8,2196.3,1.91680718]
[1750626938528,1.1806,2196.8,2196.5,4.55269019]
[1750626938852,1.1564,2197.1,2196.6,4.55246472]
[1750626939296,1.1564,2197.1,2196.4,10.0]
[1750626939463,1.099,2197.1,2196.5,2.36399733]
[1750626939662,0.2818324,2197.4,2196.5,2.36399733]
[1750626939663,1.3486324,2197.4,2196.9,4.55172678]
[1750626939885,1.3486324,2197.4,2197.0,4.55152268]
[1750626940582,1.3486324,2197.4,2197.1,4.5512993]
[1750626940786,0.2244324,2197.4,2197.2,0.04550765]
[1750626941103,11.0004,2198.0,2197.2,0.04550765]
[1750626941104,0.0574,2198.4,2197.4,10.0]